bitfinex-derivatives/quotes_ETHF0:USTF0_20251118
["timestamp","ask_amount","ask_price","bid_price","bid_amount"]
[1763454631418,0.3518,3035.9,3035.8,3.2078]
[1763454631820,0.35595921,3035.9,3035.8,0.00340005]
[1763454632014,0.00415921,3035.9,3035.8,0.00340005]
[1763454632820,0.2037,3036.6,3036.4,0.53416]
[1763454633820,0.20775293,3036.6,3036.4,0.53416]
[1763454635225,3.2078,3036.7,3036.5,0.53413]
[1763454635426,0.2037,3036.6,3036.5,0.53413]
[1763454636018,3.2078,3036.7,3036.5,0.53413]
[1763454636328,0.2037,3036.6,3036.5,0.53413]
[1763454636827,3.21155307,3036.7,3036.5,0.53413]
[1763454637313,0.00493769,3036.8,3036.7,0.53411]
[1763454638415,0.00850238,3036.8,3036.7,0.53411]
[1763454639130,0.2037,3036.6,3036.2,3.2078]
[1763454639424,0.2037,3036.6,3036.5,0.53415]
[1763454639629,0.00850238,3036.8,3036.7,0.53411]
[1763454640522,3.2078,3037.1,3037.0,0.53406]
[1763454641618,3.56342974,3037.1,3037.0,0.04527616]
[1763454642127,3.21162974,3037.1,3037.0,0.04527616]
[1763454643527,0.00382974,3037.1,3037.0,0.04527616]
[1763454643827,3.2078,3037.6,3037.5,0.53397]
[1763454644524,0.2037,3037.8,3037.7,0.53393]
[1763454644733,0.20792495,3037.8,3037.7,0.57920616]
[1763454644928,0.00422495,3037.8,3037.7,0.57920616]
[1763454645230,3.01595071,3038.5,3038.3,0.53383]
[1763454645432,0.2037,3038.4,3038.3,0.53383]
[1763454645934,0.2037,3038.4,3038.3,0.57910616]
[1763454646131,0.557996,3038.4,3038.3,0.04946354]
[1763454646331,0.2037,3037.8,3037.5,3.2078]
[1763454646534,0.2037,3037.8,3037.6,0.53395]
[1763454647328,0.2037,3037.8,3037.6,0.53675075]
[1763454648036,0.206196,3038.4,3038.3,0.53383]
[1763454648235,0.3518,3038.3,3037.6,0.00280075]
[1763454648531,0.2037,3037.8,3037.7,0.53393]
[1763454649035,0.2037,3037.8,3037.6,0.00280075]
[1763454649237,0.3518,3037.7,3037.6,0.00280075]
[1763454649535,3.2078,3038.1,3038.0,0.53388]
[1763454651029,0.206196,3038.4,3038.2,0.53385]
[1763454651833,0.3518,3038.2,3038.1,0.53386]
[1763454652033,0.3518,3038.2,3038.0,0.53387]
[1763454652832,0.3518,3038.1,3038.0,0.53387]
[1763454653038,0.3518,3037.9,3037.6,0.00280075]
[1763454653235,0.3518,3037.9,3037.8,0.5339]
[1763454655141,0.3518,3037.7,3037.6,0.00280075]
[1763454655339,3.16397255,3037.7,3037.6,0.00280075]
[1763454655535,3.51577255,3037.7,3037.6,0.00280075]
[1763454655744,0.3518,3037.7,3037.6,0.00280075]
[1763454656438,0.3518,3037.7,3037.2,0.00493769]
[1763454656439,0.3518,3037.3,3037.2,0.53895769]
[1763454656745,0.3518,3037.3,3037.2,0.00493769]
[1763454657345,0.3518,3037.3,3037.2,0.53895769]
[1763454657545,0.3518,3037.3,3037.2,0.54177727]
[1763454657747,0.2037,3037.5,3037.4,0.53399]
[1763454657944,3.2078,3037.8,3037.7,0.53393]
[1763454658940,0.5958,3038.0,3037.9,0.5339]
[1763454659340,0.5958,3038.0,3037.5,3.2078]
[1763454659642,0.5958,3038.0,3037.9,0.5339]
[1763454659846,0.2037,3038.0,3037.9,0.5339]
[1763454661948,0.206196,3038.4,3038.3,0.53383]
[1763454662150,0.2037,3039.0,3038.3,0.53383]
[1763454662151,0.2037,3039.0,3038.9,0.53372]
[1763454662644,1.74297104,3039.9,3038.9,0.53372]
[1763454662645,3.4365,3040.5,3039.0,3.2904]
[1763454662841,3.4365,3040.5,3039.8,3.2078]
[1763454663043,0.2287,3040.5,3039.8,3.74137]
[1763454663347,0.2287,3040.5,3040.1,0.5335]
[1763454663644,0.23139864,3040.5,3040.0,0.53352]
[1763454663838,0.3921,3040.1,3039.8,3.21192589]
[1763454664038,0.3921,3039.9,3039.8,3.21192589]
[1763454664250,0.23139864,3040.5,3039.8,3.21192589]
[1763454664650,0.23139864,3040.5,3040.0,0.53353]
[1763454664949,0.23139864,3040.5,3039.8,3.21192589]
[1763454665345,0.23139864,3040.5,3040.1,0.53351]
[1763454665543,0.23139864,3040.5,3039.9,0.53354]
[1763454665751,0.23139864,3040.5,3040.0,0.53352]
[1763454666150,0.23139864,3040.5,3039.8,3.21192589]
[1763454666650,0.23139864,3040.5,3039.9,0.53354]
[1763454666853,0.23139864,3040.5,3040.0,0.53353]
[1763454667151,0.2287,3041.0,3040.8,0.53339]
[1763454667342,0.2287,3041.0,3040.7,3.2078]
[1763454667947,0.2287,3041.0,3040.7,3.7412]
[1763454668151,0.23103623,3041.0,3040.7,3.2078]
[1763454668546,0.23103623,3041.0,3040.8,0.53338]
[1763454669947,0.23103623,3041.0,3040.7,3.2078]
[1763454670141,0.23103623,3041.0,3040.8,0.53338]
[1763454670757,0.23103623,3041.0,3040.7,3.7412]
[1763454671357,0.23103623,3041.0,3040.8,0.53339]
[1763454671756,0.3921,3040.8,3040.7,3.2078]
[1763454673243,0.3921,3040.4,3040.3,3.2078]
[1763454673962,0.3921,3039.9,3039.8,0.00412589]
[1763454674156,0.3921,3039.9,3039.8,2.589e-05]
[1763454674357,0.3921,3039.3,3039.2,0.00493769]
[1763454674861,0.2287,3039.6,3039.4,0.53363]
[1763454675256,0.2287,3039.6,3039.4,0.53724172]
[1763454675652,0.3921,3039.5,3039.4,0.00361172]
[1763454676464,0.3921,3039.3,3039.2,0.00493769]
[1763454676869,0.2287,3039.0,3038.6,3.2078]
[1763454677161,0.2287,3039.0,3038.8,0.53374]
[1763454677472,0.2287,3039.0,3038.6,3.2078]
[1763454677671,0.2287,3039.0,3038.6,3.21138112]
[1763454677872,0.2287,3039.0,3038.8,0.53374]
[1763454678172,0.2287,3039.0,3038.9,0.53372]
[1763454679375,0.2287,3039.0,3038.6,3.21138112]
[1763454679376,3.4414,3039.6,3038.6,3.21138112]
[1763454679565,3.4414,3039.6,3039.0,3.2078]
[1763454679760,3.4414,3039.6,3039.4,0.53363]
[1763454681870,3.2078,3040.1,3040.0,0.53353]
[1763454682183,0.2287,3040.2,3040.0,0.53353]
[1763454682862,3.2078,3040.5,3040.4,0.53346]
[1763454684669,3.7056,3040.5,3040.4,0.53346]
[1763454685267,0.4978,3040.7,3040.6,0.53342]
[1763454685470,0.3093,3040.2,3040.1,0.00493769]
[1763454685777,0.3093,3040.2,3040.1,0.53844769]
[1763454685972,0.7265,3040.8,3040.7,0.53341]
[1763454686176,0.4978,3040.6,3040.5,0.53343]
[1763454686580,0.7265,3040.8,3040.7,0.53341]
[1763454687278,0.2287,3040.8,3040.7,0.53341]
[1763454687667,0.2287,3040.8,3040.3,3.2078]
[1763454687668,0.7243,3040.8,3040.3,3.2078]
[1763454687865,0.2287,3040.8,3040.6,0.53342]
[1763454688064,0.00233623,3041.0,3040.8,0.53339]
[1763454688369,0.00233623,3041.0,3040.8,0.53646666]
[1763454689467,0.4956,3041.2,3040.8,0.00307666]
[1763454689769,0.4956,3040.9,3040.8,0.00307666]
[1763454690472,0.4956,3040.5,3040.4,0.53346]
[1763454690673,0.4956,3040.4,3040.3,3.2078]
[1763454691582,0.4956,3040.4,3040.3,3.21054655]
[1763454692381,0.2796,3040.8,3040.3,3.21054655]
[1763454693080,0.2796,3040.8,3040.6,0.53342]
[1763454693281,0.2796,3040.8,3040.7,0.53341]
[1763454694572,0.3093,3041.4,3041.3,0.5333]
[1763454694877,1.47390738,3042.0,3041.8,0.53321]
[1763454694878,0.3093,3042.0,3041.8,0.53321]
[1763454695179,3.2078,3042.7,3041.8,0.25783748]
[1763454695381,0.2796,3043.2,3042.5,0.53309]
[1763454695382,3.4874,3043.2,3042.5,0.53309]
[1763454695582,0.3125281,3042.6,3042.5,0.53543429]
[1763454695976,0.0032281,3042.6,3042.5,0.53543429]
[1763454696278,0.7784281,3042.6,3042.5,0.00234429]
[1763454696683,0.2828281,3042.6,3042.5,0.00234429]
[1763454697174,0.7784281,3042.6,3042.5,0.00234429]
[1763454697382,0.2828281,3042.6,3042.5,0.00234429]
[1763454698779,0.7784281,3042.6,3042.5,0.00234429]
[1763454701077,0.2828281,3042.6,3042.5,0.00234429]
[1763454701283,0.7784281,3042.6,3042.5,0.00234429]
[1763454702184,0.7784281,3042.6,3042.5,0.53543429]
[1763454702589,0.7752,3042.0,3041.9,0.00493769]
[1763454702780,0.38016386,3042.0,3041.9,0.00493769]
[1763454702980,0.2828281,3042.6,3042.5,0.53309]
[1763454703189,0.7784281,3042.6,3042.5,0.53309]
[1763454703381,0.7784281,3042.6,3042.0,3.2078]
[1763454703783,0.7784281,3042.6,3042.0,3.21206845]
[1763454703983,0.7784281,3042.6,3042.4,0.53311]
[1763454704394,0.4956,3042.2,3042.1,0.53315]
[1763454704589,0.4956,3042.1,3042.0,3.21206845]
[1763454704792,0.4956,3042.1,3042.0,0.00426845]
[1763454705089,3.2078,3042.4,3040.7,4.204]
[1763454705090,6.7752,3042.0,3040.7,4.204]
[1763454705279,3.2078,3041.3,3040.6,3.2078]
[1763454705990,3.21273769,3041.3,3041.0,0.53335]
[1763454706190,3.21273769,3041.3,3041.1,0.53333]
[1763454707390,3.21273769,3041.3,3041.2,0.4971]
[1763454707783,0.00493769,3041.3,3041.2,0.4971]
[1763454708190,0.4956,3041.2,3041.1,0.53333]
[1763454708693,0.00493769,3041.3,3041.1,0.53333]
[1763454709397,0.00493769,3041.3,3041.2,0.4971]
[1763454709603,0.00493769,3041.3,3041.1,0.53333]
[1763454710088,0.00493769,3041.3,3041.2,0.4971]
[1763454711488,3.2078,3042.1,3041.0,3.2078]
[1763454711687,0.7752,3042.0,3041.0,3.2078]
[1763454711888,3.2078,3041.7,3041.5,0.53326]
[1763454712695,0.10051012,3041.6,3041.5,0.53326]
[1763454712897,3.2078,3041.7,3041.5,0.53326]
[1763454714398,0.4956,3041.6,3041.5,0.53326]
[1763454714898,3.2078,3041.7,3041.5,0.53326]
[1763454716692,3.2078,3041.7,3041.6,0.4971]
[1763454717399,0.4907,3041.6,3041.5,0.53326]
[1763454720296,0.7654,3041.0,3040.9,1.18037066]
[1763454720490,0.7654,3041.0,3040.9,0.53337]
[1763454720690,3.6985,3041.3,3041.1,0.53332]
[1763454720895,3.2078,3041.3,3041.1,0.53332]
[1763454721297,0.4907,3041.2,3041.1,0.53332]
[1763454721502,3.2078,3041.3,3041.1,0.53332]
[1763454722198,3.2078,3041.3,3041.2,0.4925]
[1763454722395,3.2078,3041.7,3041.6,0.4925]
[1763454722596,3.2078,3041.7,3041.6,1.02575]
[1763454722803,2.81271181,3041.7,3041.6,1.02575]
[1763454724208,0.4907,3041.3,3041.2,0.53332]
[1763454724406,0.4907,3041.6,3041.5,0.53325]
[1763454724902,2.81271181,3041.7,3041.6,0.53325]
[1763454725105,3.30341181,3041.7,3041.1,3.2078]
[1763454725304,0.4907,3041.6,3041.5,0.53327]
[1763454726301,2.81271181,3041.7,3041.6,0.53325]
[1763454726504,3.4397,3042.5,3042.0,0.53318]
[1763454726505,3.2078,3042.1,3042.0,0.53318]
[1763454726706,3.2078,3042.1,3042.0,1.02568]
[1763454727509,3.2078,3042.1,3042.0,0.53318]
[1763454727706,3.6985,3042.1,3042.0,0.53318]
[1763454727902,0.4907,3041.6,3041.4,1.18037066]
[1763454728203,0.4907,3041.6,3041.5,0.53327]
[1763454728803,0.4907,3041.4,3041.3,0.5333]
[1763454729207,3.2078,3041.7,3041.6,0.53325]
[1763454729701,3.2078,3042.2,3042.0,0.53317]
[1763454729906,0.4907,3042.1,3042.0,0.53317]
[1763454730204,0.7654,3042.0,3041.9,0.5332]
[1763454730907,3.6985,3042.2,3042.1,0.53316]
[1763454731804,3.6985,3042.2,3042.1,1.02566]
[1763454731805,3.2078,3042.2,3042.1,1.02566]
[1763454732806,2.81277727,3042.2,3042.1,1.02566]
[1763454734708,3.30347727,3042.2,3042.1,0.53316]
[1763454734913,3.7017281,3042.6,3042.0,1.48397066]
[1763454735111,0.4907,3042.4,3042.3,0.53312]
[1763454735708,3.7017281,3042.6,3042.5,0.53309]
[1763454735906,3.2110281,3042.6,3042.5,1.31759]
[1763454736108,3.6985,3043.2,3042.5,3.4998]
[1763454736304,0.4907,3042.2,3042.1,0.53316]
[1763454736712,0.4907,3042.4,3042.3,0.53312]
[1763454737209,0.4907,3042.7,3042.6,0.53307]
[1763454737605,3.2078,3042.8,3042.6,0.53307]
[1763454737606,3.6985,3042.8,3042.6,0.53307]
[1763454737803,0.4907,3042.7,3042.6,0.53307]
[1763454738410,0.4907,3042.3,3042.2,0.53313]
[1763454739110,0.4907,3042.1,3042.0,0.00493769]
[1763454739307,0.4907,3042.1,3042.0,0.53811769]
[1763454739713,0.4907,3042.1,3042.0,0.00493769]
[1763454740021,0.4907,3041.3,3041.2,1.18037066]
[1763454740318,0.4907,3041.4,3041.0,1.17038055]
[1763454740516,0.4907,3040.9,3040.8,3.2078]
[1763454740911,0.4907,3040.7,3040.6,0.00255095]
[1763454742211,3.2078,3040.9,3040.7,0.53341]
[1763454742713,2.81258109,3040.9,3040.7,0.53341]
[1763454742914,0.4907,3040.7,3040.6,0.00255095]
[1763454743317,2.81258109,3040.9,3040.7,0.53341]
[1763454743619,0.4907,3040.8,3040.7,0.53341]
[1763454744022,0.4907,3040.7,3040.6,0.00255095]
[1763454744718,0.4907,3041.0,3040.9,0.53336]
[1763454746018,0.0049295,3041.2,3041.1,0.53334]
[1763454746019,0.4963295,3041.2,3041.1,0.53334]
[1763454746213,0.0049295,3041.2,3041.1,0.53334]
[1763454746517,0.0049295,3041.2,3041.1,1.01254]
[1763454746918,0.0049295,3041.2,3041.1,0.53334]
[1763454747215,0.4808295,3041.2,3041.1,0.53334]
[1763454747913,0.4808295,3041.2,3041.0,0.53335]
[1763454748113,0.4759,3041.1,3041.0,0.53335]
[1763454751229,0.4759,3041.0,3040.9,3.2078]
[1763454751625,0.4759,3040.7,3040.6,0.00255095]
[1763454751825,0.7679,3040.2,3040.1,3.2078]
[1763454752323,3.4998,3040.8,3040.1,3.2078]
[1763454752527,0.4759,3040.3,3040.2,0.53348]
[1763454752728,0.08063795,3040.3,3040.2,0.53348]
[1763454752931,0.00368097,3040.3,3040.2,0.53633006]
[1763454753129,0.00368097,3040.3,3040.2,1.02873006]
[1763454753831,3.2078,3040.8,3040.7,0.53341]
[1763454754030,3.2127295,3041.2,3040.9,0.53336]
[1763454754223,0.4759,3041.0,3040.9,0.53336]
[1763454754418,0.4759,3040.8,3040.7,0.53341]
[1763454754827,0.4759,3041.0,3040.9,0.53336]
[1763454755134,0.4759,3041.0,3040.2,0.00285006]
[1763454755135,0.47853778,3041.0,3040.2,0.00285006]
[1763454755427,0.47853778,3041.0,3040.8,0.53339]
[1763454755633,0.00263778,3041.0,3040.8,0.53339]
[1763454755836,0.29463778,3041.0,3040.3,0.53348]
[1763454756135,0.00263778,3041.0,3040.8,0.53339]
[1763454756437,0.00263778,3041.0,3040.2,0.00285006]
[1763454756731,0.00263778,3041.0,3040.8,0.53339]
[1763454756931,0.4759,3040.9,3040.8,0.53339]
[1763454757329,0.4759,3040.6,3040.3,0.53348]
[1763454757530,0.4759,3040.5,3040.4,0.53346]
[1763454757728,0.4759,3040.3,3040.2,0.00285006]
[1763454758127,3.2078,3040.8,3040.7,0.53341]
[1763454758332,0.4759,3040.7,3040.6,0.53342]
[1763454758524,0.4759,3040.5,3040.4,0.53344]
[1763454758737,0.4759,3040.3,3040.2,0.53635006]
[1763454759034,0.4759,3040.6,3040.5,0.53344]
[1763454760439,0.4759,3040.6,3040.2,0.00285006]
[1763454760638,0.4759,3040.5,3040.4,0.53346]
[1763454760834,3.6837,3040.8,3040.7,0.53341]
[1763454762626,3.2078,3040.8,3040.7,1.02581]
[1763454763436,3.6837,3040.8,3040.2,0.00285006]
[1763454763642,0.4759,3040.3,3040.2,0.00285006]
[1763454764038,0.4759,3040.3,3040.2,0.53635006]
[1763454764837,0.4759,3040.5,3040.4,0.53344]
[1763454765037,0.4759,3040.3,3040.2,0.00285006]
[1763454765441,0.4759,3040.3,3040.2,0.53635006]
[1763454765638,3.2078,3040.8,3040.7,0.53341]
[1763454765844,0.4759,3040.6,3040.5,0.53343]
[1763454766042,0.4759,3040.6,3040.5,0.53344]
[1763454766637,0.4759,3040.6,3040.3,0.53348]
[1763454766843,0.4759,3040.4,3040.3,0.53348]
[1763454767045,0.4759,3040.7,3040.6,0.53341]
[1763454767541,0.4759,3040.3,3040.2,0.00285006]
[1763454767744,0.4759,3040.3,3040.2,0.53635006]
[1763454768245,3.2078,3040.4,3040.3,1.02588]
[1763454769142,2.81256062,3040.4,3040.3,1.02588]
[1763454769337,3.2078,3040.8,3040.7,1.02581]
[1763454770253,3.2078,3040.8,3040.7,2.19921057]
[1763454770551,0.00263778,3041.0,3040.9,1.02577]
[1763454771350,0.00263778,3041.0,3040.9,0.4924]
[1763454771551,0.00263778,3041.0,3040.9,1.02577]
[1763454772345,0.47853778,3041.0,3040.9,0.53337]
[1763454772547,0.47853778,3041.0,3040.6,1.17340057]
[1763454773051,0.47853778,3041.0,3040.9,0.53337]
[1763454773251,0.00263778,3041.0,3040.9,1.02577]
[1763454775952,0.4759,3040.8,3040.7,4.91459057]
[1763454776252,0.4759,3040.8,3040.7,3.74119]
[1763454777252,0.00263778,3041.0,3040.8,0.53337]
[1763454777449,0.45043778,3041.0,3040.9,0.53337]
[1763454778358,0.00263778,3041.0,3040.9,0.98737]
[1763454779556,0.00263778,3041.0,3040.9,2.16077057]
[1763454780757,1.88720738,3042.0,3041.7,0.53322]
[1763454780964,0.2748,3042.0,3041.9,0.5332]
[1763454781352,0.7226,3042.0,3041.9,0.5332]
[1763454781854,0.27779435,3042.0,3041.9,0.5332]
[1763454782357,0.0049295,3042.3,3042.2,0.53314]
[1763454782751,0.4527295,3042.3,3042.2,0.53314]
[1763454783152,0.2748,3042.0,3041.8,3.2078]
[1763454783459,0.27828139,3042.0,3041.9,0.5332]
[1763454784462,0.72608139,3042.0,3041.9,0.5332]
[1763454784762,0.4478,3041.9,3041.8,3.2078]
[1763454784960,0.7226,3041.5,3041.2,1.17265021]
[1763454785164,0.7226,3041.5,3041.3,0.53329]
[1763454785165,0.2748,3041.5,3041.3,0.53329]
[1763454785462,0.27828139,3042.0,3041.9,0.5332]
[1763454785656,0.72608139,3042.0,3041.9,3.2078]
[1763454785858,0.27828139,3042.0,3041.9,3.2078]
[1763454786056,0.00348139,3042.0,3041.9,3.2078]
[1763454786353,0.4478,3042.9,3042.8,0.53304]
[1763454786557,3.2078,3043.3,3042.8,0.53304]
[1763454786758,3.2078,3043.3,3042.5,3.2078]
[1763454787263,0.29451293,3043.0,3042.5,3.21137541]
[1763454787461,0.4478,3042.7,3042.5,0.00357541]
[1763454787658,0.4478,3042.7,3042.6,0.53307]
[1763454787854,0.4478,3042.6,3042.5,0.00357541]
[1763454788166,0.4478,3042.8,3042.7,0.53305]
[1763454788366,0.4478,3042.6,3042.5,0.53665541]
[1763454788665,0.4478,3042.8,3042.7,0.53305]
[1763454788866,0.29451293,3043.0,3042.9,0.53302]
[1763454791162,0.29451293,3043.0,3042.8,0.25823893]
[1763454791360,0.4478,3042.7,3042.6,3.2078]
[1763454792065,0.4478,3042.7,3042.6,3.74086]
[1763454792268,0.29451293,3043.0,3042.6,3.2078]
[1763454792566,0.29451293,3043.0,3042.8,0.53304]
[1763454793161,0.00251293,3043.0,3042.8,0.53304]
[1763454793367,0.0346,3043.7,3043.6,0.5329]
[1763454793564,0.2748,3045.0,3043.6,3.2078]
[1763454793869,0.4478,3044.9,3044.8,0.53268]
[1763454794161,0.09064158,3045.5,3044.8,6.0]
[1763454794361,0.36842419,3045.5,3045.3,0.53259]
[1763454794560,0.09362419,3045.5,3045.3,0.53259]
[1763454795160,0.2748,3045.0,3044.9,3.2078]
[1763454795363,0.36842419,3045.5,3044.9,3.2078]
[1763454795569,0.09362419,3045.5,3045.3,3.74039]
[1763454796167,0.2748,3047.0,3045.4,10.01]
[1763454796467,0.2748,3047.0,3044.8,0.27532387]
[1763454796468,0.2748,3047.0,3046.1,3.2078]
[1763454796867,0.2748,3047.0,3046.4,0.5324]
[1763454797068,0.2748,3047.0,3046.5,0.53238]
[1763454797268,0.27866765,3047.0,3046.5,3.2078]
[1763454797464,3.2078,3046.7,3046.4,0.0049295]
[1763454797663,0.7226,3046.2,3045.5,0.53256]
[1763454797866,3.9304,3046.2,3045.4,0.53258]
[1763454798273,3.9304,3046.2,3045.5,0.53255]
[1763454798572,3.9353295,3046.2,3045.5,0.5374795]
[1763454798768,3.4875295,3046.2,3045.5,0.0049295]
[1763454798969,3.4875295,3046.2,3045.7,0.53252]
[1763454799276,3.4875295,3046.2,3045.6,0.53254]
[1763454799464,0.0049295,3046.2,3046.1,0.0453]
[1763454799668,3.2078,3046.6,3046.5,0.0404]
[1763454800664,3.2078,3046.6,3046.1,3.2078]
[1763454800665,0.27866765,3047.0,3046.6,0.53237]
[1763454800871,0.27866765,3047.0,3046.4,0.5324]
[1763454801066,0.308,3046.2,3046.1,3.2078]
[1763454801276,3.2078,3046.7,3046.6,0.0404]
[1763454801475,3.2078,3046.7,3045.7,3.2078]
[1763454802275,3.2078,3047.7,3046.6,3.2078]
[1763454802575,3.2078,3047.7,3045.8,3.78773021]
[1763454802576,3.2078,3047.7,3047.3,0.53224]
[1763454802774,0.308,3047.4,3047.2,0.0049295]
[1763454803172,0.5,3047.3,3047.2,0.00724219]
[1763454803395,3.7078,3047.3,3047.2,0.00724219]
[1763454803571,0.308,3046.8,3046.1,3.2078]
[1763454803774,3.2078,3047.3,3047.1,0.53228]
[1763454804173,3.2078,3047.3,3047.2,0.0365]
[1763454804478,3.2078,3047.3,3047.2,0.00347454]
[1763454804677,3.7078,3047.3,3047.2,0.00347454]
[1763454805075,0.5,3047.0,3046.9,0.0049295]
[1763454806177,0.5,3047.0,3046.9,0.00890085]
[1763454806481,0.5,3047.0,3046.9,8.5e-07]
[1763454806783,0.308,3046.2,3046.1,3.2078]
[1763454807082,0.808,3046.2,3046.1,0.53246]
[1763454807583,0.5115,3046.6,3046.5,0.53238]
[1763454807875,3.5158,3046.8,3046.7,0.53236]
[1763454808076,3.7193,3047.2,3046.5,0.00389621]
[1763454808281,0.5115,3047.0,3046.5,0.00389621]
[1763454808585,3.7193,3047.2,3047.1,0.53229]
[1763454808780,0.5115,3047.0,3046.7,0.53234]
[1763454808980,0.8369,3046.8,3046.7,0.53234]
[1763454809178,0.5115,3046.6,3046.5,0.00389621]
[1763454809683,0.5115,3046.6,3046.5,0.53628621]
[1763454809872,0.5115,3046.6,3046.5,0.00389621]
[1763454810978,3.5332,3046.8,3046.6,0.53237]
[1763454811473,3.2078,3047.2,3047.1,0.53229]
[1763454812383,0.5115,3047.0,3046.9,3.2078]
[1763454812573,0.5115,3047.0,3046.9,3.74012]
[1763454812770,0.31082402,3047.4,3047.0,0.5323]
[1763454813176,0.5115,3047.1,3047.0,0.5323]
[1763454814292,0.31082402,3047.4,3046.5,0.00389621]
[1763454814293,0.5115,3046.8,3046.7,0.53234]
[1763454814583,0.8369,3046.8,3046.7,0.53234]
[1763454815578,0.5115,3046.6,3046.5,0.00389621]
[1763454816585,0.5115,3046.7,3046.6,0.53237]
[1763454816783,0.5115,3046.7,3046.5,0.00389621]
[1763454816784,0.5115,3046.6,3046.5,0.00389621]
[1763454817186,0.5115,3046.7,3046.6,0.53237]
[1763454817386,0.5115,3046.6,3046.5,0.00389621]
[1763454817686,0.5115,3046.3,3046.2,0.53243]
[1763454817885,0.5115,3046.5,3046.4,0.5324]
[1763454818586,0.5115,3046.5,3046.4,0.53661815]
[1763454818992,0.3254,3046.8,3046.7,0.53236]
[1763454819294,0.8369,3046.8,3046.7,0.53236]
[1763454819789,3.7193,3047.0,3046.5,3.2078]
[1763454819987,0.8369,3046.8,3046.7,0.53236]
[1763454820489,0.8369,3046.8,3046.5,3.2078]
[1763454820680,0.5115,3046.6,3046.5,3.74019]
[1763454821192,0.3254,3046.8,3046.7,0.53236]
[1763454821193,0.8369,3046.8,3046.7,0.53236]
[1763454821493,0.5115,3046.6,3046.5,3.2078]
[1763454821694,0.5115,3046.6,3046.5,3.74019]
[1763454822193,0.11704104,3046.6,3046.5,3.74019]
[1763454823886,0.8369,3046.8,3046.7,0.53236]
[1763454824490,0.5115,3046.6,3046.5,3.74019]
[1763454824795,0.3254,3046.8,3046.7,0.53236]
[1763454824990,0.5115,3046.6,3046.5,3.74019]
[1763454825386,0.5115,3046.6,3046.5,3.2078]
[1763454825783,0.8369,3046.5,3046.4,0.00421815]
[1763454826192,2.00150738,3046.5,3046.4,0.00421815]
[1763454826687,2.00150738,3046.5,3046.4,0.53662815]
[1763454826888,0.8369,3046.5,3046.4,0.53662815]
[1763454828891,0.8369,3046.5,3046.4,0.00421815]
[1763454829291,0.8369,3046.5,3046.4,0.53662815]
[1763454830501,0.3254,3046.5,3046.4,0.53662815]
[1763454830689,0.3254,3046.8,3046.4,0.52601815]
[1763454830889,0.3254,3046.8,3046.7,0.53236]
[1763454831701,0.3254,3046.8,3046.5,3.2078]
[1763454831899,0.3254,3046.8,3046.6,0.53236]
[1763454832399,3.46415173,3047.0,3046.7,0.53234]
[1763454832698,0.5115,3046.7,3046.5,3.2078]
[1763454832903,0.5115,3046.7,3046.5,3.74019]
[1763454833403,0.5115,3046.7,3046.5,3.2078]
[1763454833596,0.5115,3046.6,3046.5,3.2078]
[1763454833905,0.8369,3046.5,3046.4,0.00421815]
[1763454834800,4.62875911,3047.0,3046.8,0.53234]
[1763454835003,1.16460738,3047.1,3047.0,0.537]
[1763454835198,0.31082402,3047.4,3047.2,0.53227]
[1763454835392,0.31082402,3047.4,3047.0,3.2078]
[1763454835393,0.5115,3047.2,3047.1,0.53228]
[1763454835601,0.5115,3047.2,3047.0,3.2078]
[1763454836004,0.5115,3047.1,3047.0,3.7401]
[1763454836206,0.5115,3047.1,3047.0,3.2078]
[1763454836910,0.298,3047.0,3046.8,0.53233]
[1763454837609,0.298,3047.0,3046.6,3.2078]
[1763454837610,0.298,3047.0,3046.9,0.53232]
[1763454837804,1.4754314,3047.4,3046.6,3.2078]
[1763454837999,0.5129,3047.3,3047.2,0.53227]
[1763454838196,0.31082402,3047.4,3047.3,0.53225]
[1763454838711,0.00282402,3047.4,3047.3,1.02565]
[1763454839303,0.51572402,3047.4,3047.3,0.53225]
[1763454839502,0.00282402,3047.4,3047.3,1.02565]
[1763454840916,0.51572402,3047.4,3047.3,0.53225]
[1763454841205,0.5129,3047.3,3047.2,3.2078]
[1763454841803,0.00282402,3047.4,3047.3,0.4934]
[1763454842007,0.00282402,3047.4,3047.3,1.02565]
[1763454842217,1.05283052,3048.1,3047.8,0.53216]
[1763454842400,0.5129,3048.0,3047.9,0.53215]
[1763454842810,0.5129,3047.8,3047.7,0.53217]
[1763454843213,0.5158959,3047.8,3047.7,0.53217]
[1763454843507,0.0029959,3047.8,3047.7,0.53217]
[1763454843711,0.5129,3047.7,3047.6,3.2078]
[1763454843899,0.8109,3047.5,3047.4,0.00492118]
[1763454844809,0.8109,3047.5,3047.4,0.53715118]
[1763454845011,0.8109,3047.5,3047.4,0.00492118]
[1763454845211,0.8109,3047.5,3047.4,0.53715118]
[1763454846412,0.8109,3047.5,3047.4,0.00492118]
[1763454846719,0.5129,3046.6,3046.5,0.53239]
[1763454847214,0.5129,3046.7,3046.3,3.2078]
[1763454847409,3.5058,3047.0,3046.6,0.53237]
[1763454847612,3.5058,3047.0,3046.7,0.53235]
[1763454847813,3.5058,3047.0,3046.5,0.00492118]
[1763454848015,3.5058,3047.0,3046.6,0.53237]
[1763454848210,3.5058,3047.0,3046.5,0.00492118]
[1763454848211,0.298,3047.5,3046.8,3.2078]
[1763454848614,0.298,3047.5,3047.1,0.53229]
[1763454848811,0.5129,3047.2,3047.1,0.53229]
[1763454849013,0.5129,3047.2,3046.9,0.53231]
[1763454849212,0.298,3047.5,3047.0,0.4934]
[1763454849413,0.8109,3047.5,3046.8,3.2078]
[1763454849716,0.5129,3046.9,3046.6,1.17265021]
[1763454849915,0.5129,3046.9,3046.5,0.00492118]
[1763454850220,0.5129,3046.8,3046.7,0.53236]
[1763454850520,0.298,3047.0,3046.8,0.53234]
[1763454851421,0.5129,3046.9,3046.5,0.00492118]